Cogmind - Beta 13 @@@ ROGUE MODE // 2024.05.28 @ 21:42:52 Player: CONM Result: Destroyed by Svarog with Nova Cannon Performance ------------- Evolutions (5) 2500 Regions Visited (14) 2800 Robots Destroyed (88) 440 Value Destroyed (2484) 2484 Prototype IDs (23) 460 Alien Tech Used (0) 0 Bonus (857) 857 TOTAL SCORE: 9541 Bonus ------- Follower Combat Kills 257 Aligned with FarCom 300 Met Zhirov 300 Cogmind --------- Core Integrity 0/1000 Matter 119/300 Energy 100/100 System Corruption 11% Temperature Critical (830) Movement Core (50) Location -5/Zhirov Parts ------- > --- POWER (1) -------- (None) > --- PROPULSION (4) --- (None) > --- UTILITY (10) ----- (None) > --- WEAPON (2) ------- (None) > --- INVENTORY (5) ---- Cesium-ion Thruster Improved Sensor Array System Shield Peak State ------------ > --- POWER ------------ Angular Momentum Engine > --- PROPULSION ------- Improved Hover Unit Airjet Gravmag System Improved Gravmag System > --- UTILITY ---------- Lightpack 2.0 Advanced Weight Redist. System Improved Trap Scanner Reaction Control System Hardened Light Armor Plating Hardened Medium Armor Plating Improved Light Armor Plating Hacking Suite > --- WEAPON ----------- Heavy Ion Cannon Heavy Ion Cannon > --- INVENTORY -------- Deuterium Engine Deuterium Engine Light Treads Armored Treads Armored Huge Wheel VTOL Module Cesium-ion Thruster Thermal Generator High-capacity Battery Improved Sensor Array Improved Signal Interpreter Target Analyzer Core Analyzer Recoil Nullifier Precision Energy Filter Precision Energy Filter Precision Energy Filter Advanced ECM Suite Improved Reaction Control System Hacking Suite System Shield Tractor Beam Precision Shock Rifle Variable Charge Gun Particle Cannon Particle Cannon Rocket Launcher Rocket Launcher Mini Grenade Launcher Mini Grenade Launcher Maul Katana [Rating: 90] Favorites ----------- Power Deuterium Engine Engine Deuterium Engine Power Core Light Nuclear Core Propulsion Light Treads Treads Light Treads Leg Carbon-fiber Leg Wheel Armored Huge Wheel Hover Unit Gravmag System Utility Improved Targeting Computer Device Heat Sink Storage Lightpack 2.0 Processor Improved Targeting Computer Hackware Hacking Suite Protection Light Armor Plating Weapon Medium Laser Energy Gun Medium Laser Energy Cannon Particle Cannon Ballistic Gun Heavy Assault Rifle Ballistic Cannon Mass Driver Launcher Rocket Launcher Impact Weapon Maul Slashing Weapon Katana Build | -11 -10 -9 -9 -9 -8 -8 -7 -6 -6 -6 -5 -5 -5 -5 ------- Run | Yrd Mat Mat Min Exi Min Mat Fac Fac Low Low Fac Upp Upp Zhi Slots Evolved 10 | . . 2 . . . 2 2 2 . . 2 . . . Power . | . . . . . . . . . . . . . . . Propulsion 2 | . . . . . . . 2 . . . . . . . Utility 8 | . . 2 . . . 2 . 2 . . 2 . . . Weapon . | . . . . . . . . . . . . . . . Parts Attached 137 | 7 10 10 2 . 13 35 31 9 . 2 11 . 4 3 Power 14 | 1 2 1 . . 2 2 2 2 . . 2 . . . Engine 11 | 1 2 1 . . 1 2 1 2 . . 1 . . . Core 3 | . . . . . 1 . 1 . . . 1 . . . Reactor . | . . . . . . . . . . . . . . . Propulsion 39 | 2 4 2 . . 4 9 12 2 . . 2 . 2 . Treads 15 | 2 4 2 . . 1 3 1 . . . . . 2 . Leg 15 | . . . . . 2 6 7 . . . . . . . Wheel 3 | . . . . . 1 . 1 . . . 1 . . . Hover 6 | . . . . . . . 3 2 . . 1 . . . Flight . | . . . . . . . . . . . . . . . Utility 25 | 2 2 5 1 . 2 2 3 4 . . 4 . . . Device 10 | 1 1 1 1 . . . 3 3 . . . . . . Storage 4 | 1 1 . . . 1 1 . . . . . . . . Processor 2 | . . 1 . . 1 . . . . . . . . . Hackware 2 | . . . . . . . . 1 . . 1 . . . Protection 7 | . . 3 . . . 1 . . . . 3 . . . Artifact . | . . . . . . . . . . . . . . . Weapon 59 | 2 2 2 1 . 5 22 14 1 . 2 3 . 2 3 Energy Gun 10 | 1 2 2 1 . 2 1 1 . . . . . . . Energy Cannon 11 | . . . . . . 6 2 . . . 2 . . 1 Ballistic Gun 6 | 1 . . . . . 4 1 . . . . . . . Ballistic Cannon 2 | . . . . . . . 2 . . . . . . . Launcher 12 | . . . . . 2 4 1 . . 1 . . 2 2 Special Weapon . | . . . . . . . . . . . . . . . Impact Weapon 2 | . . . . . . . . 1 . 1 . . . . Slashing Weapon 16 | . . . . . 1 7 7 . . . 1 . . . Piercing Weapon . | . . . . . . . . . . . . . . . Special Melee Weapon . | . . . . . . . . . . . . . . . Unidentified Prototypes . | . . . . . . . . . . . . . . . Corrupted Parts 1 | . . 1 . . . . . . . . . . . . System Corruption 10 | . . 10 . . . . . . . . . . . . Parts Lost 57 | . 4 2 1 . 10 6 20 . . 1 5 . 1 7 Power 9 | . 1 1 . . 2 1 3 . . . . . . 1 Propulsion 18 | . 1 . . . 3 2 8 . . . 3 . . 1 Utility 15 | . 1 1 1 . 2 . 4 . . 1 1 . 1 3 Weapon 15 | . 1 . . . 3 3 5 . . . 1 . . 2 Highest Loss Streak 11 | . 2 2 1 . 6 2 11 . . 1 3 . 1 6 To Critical Strikes . | . . . . . . . . . . . . . . . Average Slot Usage (%) 77 | . 96 86 99 100 74 77 69 66 86 85 67 41 45 41 Engine 7 | . 12 10 11 11 5 7 3 4 6 6 4 5 5 3 Treads 10 | . 27 21 22 22 10 4 . . . . . . 8 9 Leg 4 | . . . . . 2 13 13 . . . . . . . Hover 3 | . . . . . . . 4 18 26 26 17 . . . Device 8 | . 13 13 10 11 9 . 8 17 26 25 16 11 5 4 Storage 10 | . 14 11 11 11 12 13 7 6 6 6 5 5 5 . Processor 8 | . . 1 11 11 11 18 8 2 . . . . . . Hackware 1 | . . . . . . . . 4 6 6 7 11 11 9 Protection 4 | . . 8 11 11 1 4 3 . . . 5 . . . Energy Gun 9 | . 27 18 21 22 6 5 . . . . . . . . Energy Cannon 1 | . . . . . . 2 3 . . . . . . . Slashing Weapon 2 | . . . . . 7 3 5 6 6 6 4 . . . Naked Turns 9 | . . . . . . . . . . . . . . 9 Heaviest Build 54 | 13 20 28 23 23 23 30 41 29 29 30 54 17 22 15 Greatest Support 60 | 40 40 40 40 40 40 40 60 43 43 43 43 28 40 40 Greatest Overweight (x) 5 | . . 1 . . 5 1 4 1 . . 1 . . . Average Overweight (x) . | . . . . . . . . . . . . . . . Largest Inventory Capacity 40 | 8 10 10 10 10 10 40 40 40 40 40 40 40 40 40 Average Capacity 26 | 7 8 10 10 10 10 39 40 40 40 40 40 40 40 11 Most Carried 38 | 5 8 10 10 10 10 30 34 31 30 31 38 36 37 35 Average Carried 19 | 3 7 9 9 9 8 21 28 30 30 30 35 36 35 9 Final Capacity 40 | 8 10 10 10 10 10 40 40 40 40 40 40 40 40 5 Final Carried 36 | 5 8 10 10 10 10 30 30 30 30 31 36 36 35 3 Class Distribution -------------------- 44% | Hauler-Mutant 23% | Scavenger-Mutant 21% | Mutant 8% | Hauler-Gladiator Dominant Class ---------------- Mutant | -10/Materials Scavenger-Mutant | -9/Materials Scavenger-Mutant | -9/Mines Scavenger-Mutant | -9/Exiles Mutant | -8/Mines Hauler-Mutant | -8/Materials Hauler-Mutant | -7/Factory Hauler-Gladiator | -6/Factory Hauler-Gladiator | -6/Lower Caves Hauler-Gladiator | -6/Lower Caves Hauler-Mutant | -5/Factory Hauler-Mutant | -5/Upper Caves Hauler-Mutant | -5/Upper Caves Hacker-Mutant | -5/Zhirov Resources | -11 -10 -9 -9 -9 -8 -8 -7 -6 -6 -6 -5 -5 -5 -5 ----------- Run | Yrd Mat Mat Min Exi Min Mat Fac Fac Low Low Fac Upp Upp Zhi Matter Collected 2178 | 287 53 119 105 . 401 464 251 51 21 59 69 36 262 . Remotely . | . . . . . . . . . . . . . . . Salvage Created 2729 | 88 523 148 94 . 333 833 372 74 . 87 129 . 48 . Parts 138 | 9 21 15 15 . 16 34 16 4 . 2 3 . 3 . Haulers Intercepted 3 | . 1 . . . . 2 . . . . . . . . Recyclers Shooed 4 | . . 1 . . . 3 . . . . . . . . Parts Field Recycled . | . . . . . . . . . . . . . . . Retrieved Matter . | . . . . . . . . . . . . . . . Parts Self-Destructed 13 | . . . . . . . . . . 8 . 2 3 . Prevented 2 | . . . . . . . . . . . . . 2 . Kills | -11 -10 -9 -9 -9 -8 -8 -7 -6 -6 -6 -5 -5 -5 -5 ------- Run | Yrd Mat Mat Min Exi Min Mat Fac Fac Low Low Fac Upp Upp Zhi Combat Hostiles Destroyed 67 | . 13 5 2 . 10 12 12 1 . 5 2 . 5 . Melee 3 | . . . . . . . 2 . . 1 . . . . Guns 31 | . 11 5 2 . 5 7 1 . . . . . . . Cannons 10 | . . . . . . 2 7 . . . 1 . . . AOE 18 | . . . . . 4 3 2 . . 4 . . 5 . Classes Destroyed 14 | 1 3 3 . . 2 2 2 . . 1 . . . . Worker 1 | . . . . . 1 . . . . . . . . . Builder 2 | . . . . . . 2 . . . . . . . . Tunneler 7 | 4 . . 2 . 1 . . . . . . . . . Hauler 3 | . 1 . . . . 2 . . . . . . . . Recycler 5 | . . . . . . 4 1 . . . . . . . Operator 1 | . . 1 . . . . . . . . . . . . Watcher 2 | . . 1 . . . . . 1 . . . . . . Swarmer 29 | . 3 3 1 . 3 4 6 . . 4 . . 5 . Grunt 26 | . 10 1 1 . 6 2 4 1 . . 1 . . . Brawler 1 | . . . . . . . 1 . . . . . . . Sentry 6 | . . 1 . . . 4 . . . . 1 . . . Hunter 3 | . . . . . 1 2 . . . . . . . . Programmer 2 | . . . . . . . 1 . . 1 . . . . Samaritan 1 | . . . . . . . . . . 1 . . . . Best Kill Streak 5 | 2 3 3 2 . 3 4 4 1 . 4 1 . 5 . Combat Bots Only 5 | . 3 3 1 . 3 4 3 1 . 4 1 . 5 . Max Kills in Single Turn 3 | 1 2 1 2 . 1 1 1 1 . 2 1 . 3 . Gunslinging 1 | . 1 . . . . . . . . . . . . . Exploded 3 | . . . . . 1 1 1 . . 2 . . 3 . Melee 1 | . . . . . . . 1 . . 1 . . . . Uniques/NPCs Destroyed . | . . . . . . . . . . . . . . . Combat | -11 -10 -9 -9 -9 -8 -8 -7 -6 -6 -6 -5 -5 -5 -5 -------- Run | Yrd Mat Mat Min Exi Min Mat Fac Fac Low Low Fac Upp Upp Zhi Hostile Shots Fired 947 | . 74 21 19 . 68 125 386 9 8 28 31 2 11 165 Missed 296 | . 24 6 10 . 14 36 153 6 6 13 7 1 6 14 Damage Taken 8203 | . 588 255 107 . 993 1140 2570 17 38 237 534 16 164 1544 Core 2578 | . 124 49 20 . 277 306 682 . . 103 80 16 42 879 Absorbed by Shields . | . . . . . . . . . . . . . . . Core Remaining (%) 49 | 100 50 . . . 13 44 2 . . 87 . . . . Volleys Fired 202 | 6 36 19 9 . 19 66 28 . . 4 6 . 3 6 Largest 2 | 2 2 2 2 . 2 2 2 . . 1 2 . 2 2 Hottest 136 | 70 100 115 100 . 134 136 133 . . 33 130 . 63 98 Shots Fired 337 | 12 71 33 20 . 29 103 38 . . 4 12 . 7 8 Gun 233 | 12 71 33 20 . 20 74 3 . . . . . . . Cannon 66 | . . . . . . 18 32 . . . 12 . . 4 Launcher 38 | . . . . . 9 11 3 . . 4 . . 7 4 Special . | . . . . . . . . . . . . . . . Kinetic 55 | 6 . . . . . 21 28 . . . . . . . Thermal 244 | 6 71 33 20 . 20 71 7 . . . 12 . . 4 Explosive 38 | . . . . . 9 11 3 . . 4 . . 7 4 Electromagnetic . | . . . . . . . . . . . . . . . Robot Hit Streak 22 | 9 22 14 4 . 7 13 11 . . . 3 . 3 5 Robot Miss Streak 9 | 1 2 9 2 . 3 6 1 . . 4 5 . 1 2 Penetration Max . | . . . . . . . . . . . . . . . Secondary Targets 5 | . 2 . . . 2 1 . . . . . . . . Max Gunslinging Chain 1 | . 1 . . . 1 1 . . . . . . . . Shots Hit Robots 251 | 10 55 20 13 . 24 64 32 6 1 8 12 . 1 5 Core Hits 155 | 4 25 17 7 . 20 35 23 1 . 9 2 . 5 7 Critical Kills . | . . . . . . . . . . . . . . . Critical Parts Destroyed 6 | . . . . . . 1 . 1 . 2 2 . . . Critical Strikes 22 | 1 6 3 1 . 2 2 2 1 . 2 2 . . . Burn 14 | 1 6 3 1 . 2 1 . . . . . . . . Destroy 1 | . . . . . . 1 . . . . . . . . Blast 2 | . . . . . . . 2 . . . . . . . Smash 5 | . . . . . . . . 1 . 2 2 . . . Melee Attacks 83 | . . . . . 10 18 17 15 2 9 12 . . . Impact 26 | . . . . . . . . 11 2 7 6 . . . Slashing 57 | . . . . . 10 18 17 4 . 2 6 . . . Piercing . | . . . . . . . . . . . . . . . Sneak Attacks 11 | . . . . . 3 2 . 5 . 1 . . . . Combat Hostiles 2 | . . . . . . . . 2 . . . . . . Follow-up Attacks 7 | . . . . . . . 1 2 . 2 2 . . . Damage Inflicted 7336 | 120 707 256 180 . 915 1518 1613 372 41 690 364 . 361 199 Guns 2240 | 120 702 254 175 . 207 736 46 . . . . . . . Cannons 1341 | . . . . . . 228 840 . . . 190 . . 83 Explosions 2329 | . . . . . 526 407 589 . . 331 . . 361 115 Melee 1396 | . . . . . 182 130 138 372 41 359 174 . . . Ramming 30 | . 5 2 5 . . 17 . . . . . . . 1 Kinetic 870 | 58 . . . . . 88 724 . . . . . . . Thermal 2711 | 62 702 254 175 . 207 876 162 . . . 190 . . 83 Explosive 2329 | . . . . . 526 407 589 . . 331 . . 361 115 Electromagnetic . | . . . . . . . . . . . . . . . Impact 720 | . . . . . . . . 276 41 292 111 . . . Slashing 676 | . . . . . 182 130 138 96 . 67 63 . . . Piercing . | . . . . . . . . . . . . . . . Highest Corruption 11 | . . 11 11 11 11 . 4 . . 1 4 5 5 11 Average Corruption 8 | . . 10 11 11 11 . 4 . . 1 2 5 5 5 Corruption Purged . | . . . . . . . . . . . . . . . Corruption Blocked . | . . . . . . . . . . . . . . . Effects 181 | . . 16 42 27 51 . 21 . . . . 3 18 3 Message Errors 38 | . . 5 11 6 7 . 4 . . . . . 5 . Matter Fused 54 | . . 3 11 6 18 . 9 . . . . 2 5 . Heat Flow Errors 27 | . . 1 4 5 9 . 1 . . . . 1 4 2 Energy Discharges 18 | . . 2 5 5 3 . 3 . . . . . . . Parts Rejected 2 | . . 2 . . . . . . . . . . . . Parts Fused 1 | . . . . 1 . . . . . . . . . . Data Loss (minor) 18 | . . 1 4 2 7 . 2 . . . . . 2 . Data Loss (major) 10 | . . . 4 2 3 . 1 . . . . . . . Misfires 6 | . . . 3 . 1 . . . . . . . 1 1 Alerts 4 | . . 1 . . 1 . 1 . . . . . 1 . Misdirections 2 | . . 1 . . 1 . . . . . . . . . Weapon Failures 1 | . . . . . 1 . . . . . . . . . Overload Shots . | . . . . . . . . . . . . . . . Overflow Damage 501 | . . . . . 5 . 27 156 . 174 81 . 58 . Projectiles 3 | . . . . . . . 3 . . . . . . . Explosions 83 | . . . . . 1 . 24 . . . . . 58 . Melee 415 | . . . . . 4 . . 156 . 174 81 . . . Knockbacks 6 | . . . 1 . . . 2 3 . . . . . . Impact 4 | . . . 1 . . . . 3 . . . . . . Kinetic 1 | . . . . . . . 1 . . . . . . . Secondary 1 | . . . . . . . 1 . . . . . . . Self-Inflicted Damage 425 | . . . . . 135 . 149 . . . . . 98 43 Shots 10 | . . . . . 3 . 3 . . . . . 2 2 Rammed 4 | . 1 1 1 . . . . . . . . . . 1 Targets Rammed 10 | . 1 1 1 . . 6 . . . . . . . 1 Kicked 6 | . . . . . . 6 . . . . . . . . Crushed . | . . . . . . . . . . . . . . . Highest Temperature 1012 | 18 482 243 255 201 254 243 259 . . . 509 252 228 1012 Average Temperature 101 | 9 147 58 73 89 107 45 79 . . . 271 133 101 448 Received Heat Transfer 2920 | . 330 45 45 . 531 108 558 . 18 30 108 . . 1147 Effects 18 | . 12 . . . . . . . . . 5 . . 1 Shutdowns 3 | . 1 . . . . . . . . . 2 . . . Energy Bleed 2 | . 1 . . . . . . . . . 1 . . . Interference 1 | . 1 . . . . . . . . . . . . . Short Circuit 2 | . . . . . . . . . . . 2 . . . Damage (minor) 1 | . 1 . . . . . . . . . . . . . Damage (major) 8 | . 8 . . . . . . . . . . . . . Damage (core) 1 | . . . . . . . . . . . . . . 1 Siege Activations . | . . . . . . . . . . . . . . . Robots Corrupted . | . . . . . . . . . . . . . . . Combat Hostiles . | . . . . . . . . . . . . . . . Parts Fried 3 | . . . . . . . . 2 . . 1 . . . Impact Corruptions 21 | . . . . . . . . 5 . 14 2 . . . Robots Melted 3 | . 2 . . . 1 . . . . . . . . . Combat Hostiles 3 | . 2 . . . 1 . . . . . . . . . Parts Melted 10 | 1 6 2 . . . 1 . . . . . . . . Heat Transferred 7120 | 259 2516 747 592 . 666 1739 222 . . . 259 . . 120 Parts Sabotaged . | . . . . . . . . . . . . . . . Parts Stolen . | . . . . . . . . . . . . . . . Parts Stripped . | . . . . . . . . . . . . . . . Power Chain Reactions . | . . . . . . . . . . . . . . . Alert | -11 -10 -9 -9 -9 -8 -8 -7 -6 -6 -6 -5 -5 -5 -5 ------- Run | Yrd Mat Mat Min Exi Min Mat Fac Fac Low Low Fac Upp Upp Zhi Peak Influence 358 | 20 145 184 263 . 127 196 229 53 . . 358 . . . Initial 231 | . 13 17 5 . . 5 70 9 . . 231 . . . Average 83 | 5 46 96 112 . 33 78 100 26 . . 295 . . . Maximum Alert Level 1 | . . . 1 . . . 1 . . . 1 . . . Low Security (%) 89 | 100 100 100 78 . 100 100 82 100 . . 8 . . . Level 1 10 | . . . 21 . . . 17 . . . 91 . . . Level 2 . | . . . . . . . . . . . . . . . Level 3 . | . . . . . . . . . . . . . . . Level 4 . | . . . . . . . . . . . . . . . Level 5 . | . . . . . . . . . . . . . . . High Security . | . . . . . . . . . . . . . . . Max Security . | . . . . . . . . . . . . . . . Squads Dispatched 12 | . 3 1 . . . . 7 . . 1 . . . . Investigation 3 | . 2 . . . . . 1 . . . . . . . Extermination 2 | . . . . . . . 2 . . . . . . . Reinforcement 3 | . 1 1 . . . . 1 . . . . . . . Assault 1 | . . . . . . . . . . 1 . . . . Garrison 3 | . . . . . . . 3 . . . . . . . Intercept . | . . . . . . . . . . . . . . . Searches Triggered . | . . . . . . . . . . . . . . . Construction Impeded . | . . . . . . . . . . . . . . . Haulers Reinforced . | . . . . . . . . . . . . . . . Active Scanning Responses . | . . . . . . . . . . . . . . . Cargo Convoy Interrupts . | . . . . . . . . . . . . . . . Stealth | -11 -10 -9 -9 -9 -8 -8 -7 -6 -6 -6 -5 -5 -5 -5 --------- Run | Yrd Mat Mat Min Exi Min Mat Fac Fac Low Low Fac Upp Upp Zhi Distress Signals 4 | . 2 . . . . 2 . . . . . . . . Communications Jammed . | . . . . . . . . . . . . . . . Distress Signals . | . . . . . . . . . . . . . . . Times Spotted 142 | . 16 13 15 . 10 25 26 4 3 12 9 1 5 3 Peak Tracking Total 9 | . 4 5 4 . 3 4 5 2 3 9 3 1 5 3 Tactical Retreats 13 | . . . . . . . 3 1 1 6 2 . . . Traps | -11 -10 -9 -9 -9 -8 -8 -7 -6 -6 -6 -5 -5 -5 -5 ------- Run | Yrd Mat Mat Min Exi Min Mat Fac Fac Low Low Fac Upp Upp Zhi Traps Triggered 4 | . 2 1 . . . . . . . . 1 . . . Indirectly . | . . . . . . . . . . . . . . . Trap Hack Attempts . | . . . . . . . . . . . . . . . Triggered . | . . . . . . . . . . . . . . . Disarmed . | . . . . . . . . . . . . . . . Reprogrammed . | . . . . . . . . . . . . . . . Reused . | . . . . . . . . . . . . . . . Traps Extracted . | . . . . . . . . . . . . . . . Installed . | . . . . . . . . . . . . . . . Triggered 3 | . . . . . . . . . . 2 . . 1 . Machines | -11 -10 -9 -9 -9 -8 -8 -7 -6 -6 -6 -5 -5 -5 -5 ---------- Run | Yrd Mat Mat Min Exi Min Mat Fac Fac Low Low Fac Upp Upp Zhi Machines Disabled 7 | . . . 1 . . 1 4 . . . . . . 1 Max in Single Turn 2 | . . . . . . 1 2 . . . . . . 1 Garrison Access 1 | . . . . . . . . . . . 1 . . . Machines Repaired . | . . . . . . . . . . . . . . . Machines Dismantled . | . . . . . . . . . . . . . . . Machines Sabotaged . | . . . . . . . . . . . . . . . Overloaded Fab Kills . | . . . . . . . . . . . . . . . Hacking | -11 -10 -9 -9 -9 -8 -8 -7 -6 -6 -6 -5 -5 -5 -5 --------- Run | Yrd Mat Mat Min Exi Min Mat Fac Fac Low Low Fac Upp Upp Zhi Machines Accessed 24 | . 6 1 . 1 . 4 6 2 . . 3 . 1 . Terminals 13 | . 5 . . . . 3 3 2 . . . . . . Fabricators 2 | . . . . . . . 1 . . . 1 . . . Repair Stations . | . . . . . . . . . . . . . . . Recycling Units 2 | . 1 1 . . . . . . . . . . . . Scanalyzers 3 | . . . . . . 1 1 . . . 1 . . . Garrison Access 2 | . . . . . . . 1 . . . 1 . . . Total Hacks 60 | . 14 3 . 1 . 17 13 5 . . 6 . 1 . Successful 27 | . 3 2 . 1 . 9 6 4 . . 1 . 1 . Failed 33 | . 11 1 . . . 8 7 1 . . 5 . . . Catastrophic 8 | . 5 . . . . . 2 . . . 1 . . . Database Lockouts . | . . . . . . . . . . . . . . . Manual 21 | . 11 . . 1 . 9 . . . . . . . . Terminals 36 | . 12 . . . . 12 7 5 . . . . . . Fabricators 3 | . . . . . . . 1 . . . 2 . . . Repair Stations . | . . . . . . . . . . . . . . . Recycling Units 5 | . 2 3 . . . . . . . . . . . . Scanalyzers 8 | . . . . . . 5 2 . . . 1 . . . Garrison Access 6 | . . . . . . . 3 . . . 3 . . . Terminal Hacks 15 | . 1 . . 1 . 5 3 4 . . . . 1 . Record 4 | . . . . . . . 1 3 . . . . . . Open Door 1 | . . . . . . . . . . . . . 1 . Open DSF 1 | . . . . . . . . 1 . . . . . . Branch Access Points 1 | . . . . . . 1 . . . . . . . . Terminal Index 2 | . 1 . . . . 1 . . . . . . . . Alert Level 1 | . . . . . . . 1 . . . . . . . Locate Traps 1 | . . . . . . 1 . . . . . . . . Maintenance Status 1 | . . . . . . 1 . . . . . . . . Zone Layout 2 | . . . . . . 1 1 . . . . . . . Derelict Proto ID Bank 1 | . . . . 1 . . . . . . . . . . Fabricator Hacks 1 | . . . . . . . 1 . . . . . . . Build 1 | . . . . . . . 1 . . . . . . . Repair Station Hacks . | . . . . . . . . . . . . . . . Recycling Unit Hacks 4 | . 2 2 . . . . . . . . . . . . Report Inventory 2 | . 1 1 . . . . . . . . . . . . Retrieve Components 2 | . 1 1 . . . . . . . . . . . . Scanalyzer 6 | . . . . . . 4 2 . . . . . . . Insert Component 3 | . . . . . . 2 1 . . . . . . . Analyze 3 | . . . . . . 2 1 . . . . . . . Garrison Access Hacks 1 | . . . . . . . . . . . 1 . . . Seal Access 1 | . . . . . . . . . . . 1 . . . Unauthorized Hacks . | . . . . . . . . . . . . . . . Terminals . | . . . . . . . . . . . . . . . Fabricators . | . . . . . . . . . . . . . . . Repair Stations . | . . . . . . . . . . . . . . . Recycling Units . | . . . . . . . . . . . . . . . Scanalyzers . | . . . . . . . . . . . . . . . Garrison Access . | . . . . . . . . . . . . . . . Data Cores Recovered . | . . . . . . . . . . . . . . . Used . | . . . . . . . . . . . . . . . Hacking Detections 19 | . 6 . . . . 4 5 1 . . 3 . . . Full Trace Events 2 | . 1 . . . . . 1 . . . . . . . Feedback Events . | . . . . . . . . . . . . . . . Feedback Blocked . | . . . . . . . . . . . . . . . Robot Schematics Acquired . | . . . . . . . . . . . . . . . Robots Built . | . . . . . . . . . . . . . . . Authchips . | . . . . . . . . . . . . . . . Time . | . . . . . . . . . . . . . . . Total Robot Build Rating . | . . . . . . . . . . . . . . . Part Schematics Acquired 3 | . . . . . . 2 1 . . . . . . . Parts Built 2 | . . . . . . . 2 . . . . . . . Authchips . | . . . . . . . . . . . . . . . Time 53 | . . . . . . . 53 . . . . . . . Total Part Build Rating 12 | . . . . . . . 12 . . . . . . . Parts Repaired . | . . . . . . . . . . . . . . . Time . | . . . . . . . . . . . . . . . Parts Recycled . | . . . . . . . . . . . . . . . Recycled Matter . | . . . . . . . . . . . . . . . Retrieved Matter . | . . . . . . . . . . . . . . . Retrieved Components 11 | . 9 2 . . . . . . . . . . . . Parts Scanalyzed 3 | . . . . . . 2 1 . . . . . . . Part Schematics Acquired 3 | . . . . . . 2 1 . . . . . . . Parts Damaged . | . . . . . . . . . . . . . . . Bothacking | -11 -10 -9 -9 -9 -8 -8 -7 -6 -6 -6 -5 -5 -5 -5 ------------ Run | Yrd Mat Mat Min Exi Min Mat Fac Fac Low Low Fac Upp Upp Zhi Used RIF Installer . | . . . . . . . . . . . . . . . Robots Hacked . | . . . . . . . . . . . . . . . Non-combat . | . . . . . . . . . . . . . . . Combat . | . . . . . . . . . . . . . . . Robot Hacks Applied . | . . . . . . . . . . . . . . . Relay Couplers Released . | . . . . . . . . . . . . . . . Fabnet Peak Effective % . | . . . . . . . . . . . . . . . Robots Rewired . | . . . . . . . . . . . . . . . Allies Hacked . | . . . . . . . . . . . . . . . Hacks Repelled . | . . . . . . . . . . . . . . . Allies | -11 -10 -9 -9 -9 -8 -8 -7 -6 -6 -6 -5 -5 -5 -5 -------- Run | Yrd Mat Mat Min Exi Min Mat Fac Fac Low Low Fac Upp Upp Zhi Total Allies 5 | . . . 5 . . . . . . . . . . . Largest Group 4 | . . . 4 2 2 . . . . . . . . . Highest-Rated Group 71 | . . . 71 24 24 . . . . . . . . . Highest-Rated Ally 31 | . . . 31 16 16 . . . . . . . . . Total Orders . | . . . . . . . . . . . . . . . Ally Attacks 58 | . . . 53 . 5 . . . . . . . . . Total Damage 784 | . . . 728 . 56 . . . . . . . . . Kills 13 | . . . 13 . . . . . . . . . . . Allies Corrupted . | . . . . . . . . . . . . . . . Allies Melted . | . . . . . . . . . . . . . . . Intel | -11 -10 -9 -9 -9 -8 -8 -7 -6 -6 -6 -5 -5 -5 -5 ------- Run | Yrd Mat Mat Min Exi Min Mat Fac Fac Low Low Fac Upp Upp Zhi Robot Analysis Total . | . . . . . . . . . . . . . . . Derelict Logs Recovered 5 | . . . 2 . . . . . . 2 . . 1 . Drone Launches . | . . . . . . . . . . . . . . . Drone Recoveries . | . . . . . . . . . . . . . . . Exploration | -11 -10 -9 -9 -9 -8 -8 -7 -6 -6 -6 -5 -5 -5 -5 ------------- Run | Yrd Mat Mat Min Exi Min Mat Fac Fac Low Low Fac Upp Upp Zhi Turns Passed 10656 | 228 901 456 1157 692 1260 2333 1250 500 134 206 439 192 775 133 Spaces Moved 7670 | 125 466 228 698 431 698 1256 1011 832 269 369 517 192 519 59 Core 51 | 6 . . . . 25 . 19 . . . . . . 1 Treads 3292 | 119 466 228 698 431 546 301 73 . . . . . 372 58 Legs 1457 | . . . . . 103 955 399 . . . . . . . Wheels 444 | . . . . . 24 . 77 . . . 4 192 147 . Hover 2426 | . . . . . . . 443 832 269 369 513 . . . Flight . | . . . . . . . . . . . . . . . Fastest Speed 48 | 50 160 160 160 160 95 120 52 48 48 48 48 100 100 50 Average Speed 121 | 154 160 160 160 160 165 151 102 52 48 48 62 100 146 163 Slowest Speed 300 | 160 160 240 160 160 300 225 250 116 48 48 116 100 165 170 Overloaded Moves . | . . . . . . . . . . . . . . . Propulsion Burnouts . | . . . . . . . . . . . . . . . Robots Hopped . | . . . . . . . . . . . . . . . Cave-ins Triggered . | . . . . . . . . . . . . . . . Exploration Rate (%) 45 | 7 52 25 98 80 87 42 17 13 43 69 13 29 74 39 Regions Visited 14 Branch Regions 8 Pre-discovered Areas 3 | . . . 3 . . . . . . . . . . . Known Exits Taken . | . . . . . . . . . . . . . . . Unknown Exits Taken 14 | 1 1 1 1 1 1 1 1 1 1 1 1 1 1 . Scrap Searched 5 | . . . 1 . 1 . . . 1 1 . . 1 . Spaces Dug 49 | . . . . . 14 15 6 6 . . 4 . 4 . Terrain Destroyed 310 | . . . . . 85 90 39 6 . 28 6 . 35 21 Melee 35 | . . . . . 4 15 6 6 . . 4 . . . Projectile 5 | . . . . . . . 3 . . . 2 . . . AOE 270 | . . . . . 81 75 30 . . 28 . . 35 21 Terrain Rammed . | . . . . . . . . . . . . . . . Walls Destroyed . | . . . . . . . . . . . . . . . Machines Disabled . | . . . . . . . . . . . . . . . Actions | -11 -10 -9 -9 -9 -8 -8 -7 -6 -6 -6 -5 -5 -5 -5 --------- Run | Yrd Mat Mat Min Exi Min Mat Fac Fac Low Low Fac Upp Upp Zhi Total 8524 | 146 550 282 720 436 750 1558 1154 868 270 382 600 191 528 89 Wait 292 | . 26 19 10 . 1 130 51 13 . . 42 . . . Move 7656 | 124 465 227 697 430 697 1255 1010 831 268 368 516 191 518 59 Hop . | . . . . . . . . . . . . . . . Pick Up 96 | 8 7 4 1 2 7 36 17 3 . 1 9 . 1 . Fast Attach 30 | 5 3 6 1 . 3 2 3 6 . . 1 . . . Attach 61 | 2 4 2 1 . 7 16 15 2 . . 5 . 4 3 Detach 18 | . . . . . 1 10 1 . . . 4 . 2 . Swap 46 | . 3 2 . . 3 17 13 1 . 2 5 . . . Drop 21 | 1 5 2 . 4 2 3 . 1 . . 2 . . 1 Fire 202 | 6 36 19 9 . 19 66 28 . . 4 6 . 3 6 Melee 73 | . . . . . 10 17 16 11 2 7 10 . . . Ram . | . . . . . . . . . . . . . . . Kick 6 | . . . . . . 6 . . . . . . . . Crush 4 | . 1 1 1 . . . . . . . . . . 1 Escape Stasis 19 | . . . . . . . . . . . . . . 19 Rewire . | . . . . . . . . . . . . . . . Trap . | . . . . . . . . . . . . . . . Miscellaneous . | . . . . . . . . . . . . . . . Route ------- -11/Scrapyard -10/Materials (discovered 3 exits: *Mat / [*Min x2]) -9/Materials -9/Mines (discovered 3 exits: *Mat x2 / *Exi) -9/Exiles -8/Mines -8/Materials -7/Factory -6/Factory -6/Lower Caves -6/Lower Caves (discovered 2 exits: *Fac / Zio) -5/Factory -5/Upper Caves -5/Upper Caves -5/Zhirov (discovered 1 exit: [*Pro]) History --------- Turn | Location | Event 35 | -11/Scrapyard | Discovered new exit (range 16) 229 | -11/Scrapyard | Entered Materials 229 | -10/Materials | Discovered new exit (range 7) 305 | -10/Materials | Build established: Mutant 851 | -10/Materials | Discovered new exit (range 7) 982 | -10/Materials | Discovered new exit (range 16) 1130 | -10/Materials | Entered another Materials area 1130 | -9/Materials | Evolved 2 slots: Utility x2 1294 | -9/Materials | System corruption reached 10% 1430 | -9/Materials | Discovered new exit (range 14) 1586 | -9/Materials | Entered Mines 1593 | -9/Mines | Build established: Scavenger-Mutant 1612 | -9/Mines | Discovered new exit (range 13) 1873 | -9/Mines | Received a Rocket Launcher from a helpful Derelict 1893 | -9/Mines | Discovered new exit (range 6) 1920 | -9/Mines | Assisted by bots powering up and referring to "LRC-V3" 2394 | -9/Mines | Learned location of Storage (-9) 2735 | -9/Mines | Deemed a non-threat by the Exiles lab entrance 2736 | -9/Mines | Discovered new exit (range 5) 2743 | -9/Mines | Entered Exiles 2743 | -9/Exiles | Accompanied by 2 allies 2782 | -9/Exiles | Met 8R-AWN 2809 | -9/Exiles | Met EX-HEX 2879 | -9/Exiles | Met EX-DEC 2999 | -9/Exiles | Visited The Gauntlet 3151 | -9/Exiles | Met EX-BIN 3187 | -9/Exiles | Aligned with FarCom system 3188 | -9/Exiles | Given EX-Vault access code 3230 | -9/Exiles | Opened EX-Vault 3249 | -9/Exiles | Found Lightpack 2.0 3282 | -9/Exiles | Warned to stay clear of 0b10 Research branches 3297 | -9/Exiles | Exiles lab attacked by MAIN.C 3423 | -9/Exiles | Discovered new exit (range 10) 3435 | -9/Exiles | Left Exiles lab with Lightpack 2.0 3435 | -9/Exiles | Entered Mines 3435 | -8/Mines | Accompanied by 2 allies 3706 | -8/Mines | Lost 6 parts (1p2n1u2w) 3969 | -8/Mines | Build established: Mutant 4491 | -8/Mines | Core integrity fell below 50% 4515 | -8/Mines | Core integrity fell below 20% 4540 | -8/Mines | Lost 4 parts (1p1n1u1w) 4681 | -8/Mines | Discovered new exit (range 12) 4695 | -8/Mines | Entered Materials 4695 | -8/Materials | Evolved 2 slots: Utility x2 5004 | -8/Materials | Build established: Hauler-Mutant 5344 | -8/Materials | Core integrity fell below 50% 6445 | -8/Materials | Discovered new exit (range 16) 7028 | -8/Materials | Entered Factory 7028 | -7/Factory | Evolved 2 slots: Propulsion x2 7157 | -7/Factory | Fabricated Mass Driver (x2) 7648 | -7/Factory | Lost 11 parts (1p6n2u2w) 7710 | -7/Factory | Core integrity fell below 50% 7731 | -7/Factory | Core integrity fell below 20% 7747 | -7/Factory | Lost 3 parts (1p1n1w) 8220 | -7/Factory | Discovered new exit (range 15) 8278 | -7/Factory | Entered another Factory area 8278 | -6/Factory | Evolved 2 slots: Utility x2 8306 | -6/Factory | Lost 4 parts (1p1n1u1w) 8385 | -6/Factory | Discovered new exit (range 3) 8441 | -6/Factory | Identified exit to DSF 8728 | -6/Factory | Build established: Hauler-Gladiator 8778 | -6/Factory | Entered Lower Caves 8889 | -6/Lower Caves | Discovered new exit (range 8) 8912 | -6/Lower Caves | Entered another Lower Caves area 8965 | -6/Lower Caves | Attracted the attention of an 0b10 outpost 8975 | -6/Lower Caves | Learned 4 Factory zone layouts 9027 | -6/Lower Caves | Identified exit to Zion 9111 | -6/Lower Caves | Discovered new exit (range 8) 9118 | -6/Lower Caves | Entered Factory 9118 | -5/Factory | Evolved 2 slots: Utility x2 9404 | -5/Factory | Build established: Hauler-Mutant 9539 | -5/Factory | Discovered new exit (range 15) 9557 | -5/Factory | Entered Upper Caves 9587 | -5/Upper Caves | Lost 3 parts (2n1w) 9743 | -5/Upper Caves | Discovered new exit (range 8) 9749 | -5/Upper Caves | Entered another Upper Caves area 10223 | -5/Upper Caves | Discovered new exit (range 8) 10248 | -5/Upper Caves | Learned Factory trap positions 10524 | -5/Upper Caves | Entered Zhirov 10524 | -5/Zhirov | Discovered new exit (range 3) 10579 | -5/Zhirov | Met Zhirov 10620 | -5/Zhirov | Attacked by Zhirov 10648 | -5/Zhirov | Released all parts (3) 10649 | -5/Zhirov | Core integrity fell below 50% 10649 | -5/Zhirov | System corruption reached 10% 10655 | -5/Zhirov | Core integrity fell below 20% 10657 | -5/Zhirov | Destroyed by Svarog with Nova Cannon Last Messages --------------- 10625_ Lgt. Treads destroyed. 10631_ Held in stasis. 10634_ Mni. Grenade Launcher destroyed. 10635_ Held in stasis. 10635_ Hacking Suite destroyed. 10637_ Door malfunctions. 10640_ Held in stasis. 10645_ Slammed into Svarog. 10646_ System corrupted: Heat flow error (+195). 10646_ Held in stasis. 10648_ Particle Cannon destroyed. 10648_ Hacking Suite destroyed. 10648_ Critical hit (Meltdown: +510). 10648_ Released Arm. Huge Wheel. 10648_ Released Adv. Weight Redist. System. 10648_ Released Arm. Treads. 10650_ Held in stasis. 10651_ Critical hit (Meltdown: +520). 10654_ Held in stasis. 10655_ Overheating: Core damaged (-100). Map ----- +----------------------------------------------------+ | ????????????????????????????????????????? | | ????????????????????????????????????????? | | ????????????????????????????????????????? | | ????????????????????????????????????????? | | ????????????????????????????????????????? | | ????????????????????????????????????????? | | ????????????????????????????????????????? | | ????????????????????????????????????????? | | ???????????????????????????#""#?????????? | | ??????????????????????????##""##????????? | | ????????????????????###??##""""##???????? | | ????????????######### ##?#""""""#??????## | | ????????????#""" #?# """" #??##### | | ????????????#" " ### #### # | | ????????????#" = | | ????????????#" ! | | ????#" "#### ] | | ?????"" # ! | | ???????##+#### ### ## # | | ????????????#"" #?# """" ######### | | ????????????##" #### ##?#""""""#???????? | | ?????????????#" ]#??###??##""""##???????? | | ?????????????##P #????????##""##????????? | | ??????????????#1S#?????????#""#?????????? | | ??????????????# =#??????????????????????? | | ??????????????# @#??????????????????????? | | ?????????????# #?????????????????????? | | ?????????????# #?????????????????????? | | ?????????????# #?????????????????????? | | ?????????????/ +?????????????????????? | | ????????????"# #?????????????????????? | | ???????????""# #?????????????????????? | | ??????????""?# #?????????????????????? | | ?????????????##;+##?????????????????????? | | ?????????????? ????????????????????????? | | ?????????????? ????????????????????????? | | ??????????????" ????????????????????????? | | ??????????????"B????????????????????????? | | ??????????????"B????????????????????????? | | ???????????????#????????????????????????? | | ????????????????????????????????????????? | | ????????????????????????????????????????? | | ????????????????????????????????????????? | | ????????????????????????????????????????? | | ????????????????????????????????????????? | | ????????????????????????????????????????? | | ????????????????????????????????????????? | | ????????????????????????????????????????? | | ????????????????????????????????????????? | | | +----------------------------------------------------+ Best States ------------- Heat Dissipation 48 Energy Generation 19 Energy Capacity 350 Matter Stores 300 Matter Capacity 300 Sight Range 16 Terrain Scan Range 16 Terrain Scan Density 10 Additional Mass Support 9 Armor Coverage 525 Melee Speed Boost 20 Evasion (%) 63 Targeting Accuracy 12 Recoil Reduction 2 Offensive Hacking 20 Item Schematics ----------------- Adv. Weight Redist. System | -8/Materials | Scanalyzed Katana | -8/Materials | Scanalyzed VTOL Module | -7/Factory | Scanalyzed Robot Schematics ------------------ None Fabricated ------------ Mass Driver | x2 | -7/Factory | Preloaded Alien Tech Used ----------------- None Achievements -------------- Deadly Force Packrat The Science Guy Challenges ------------ None Game ------ Seed HypervelocityHeavyArray Manual? 0 Play Time 02:03:58 Cumulative 24.0 hours Start 2024.05.27 @ 16:07:24 End 2024.05.28 @ 21:42:52 Sessions 5 Manual Loads 0 Difficulty Rogue Special Mode None Game No. 46 Rogue 46 Adventurer 0 Explorer 0 Win Type - Total 0 Types 0/0/0/0/0/0/0/0/0 Lore% 19 Gallery% 19 Achievement% 23 Wizard Run 0 Options --------- Layout 0 ASCII 0 Keyboard 0 Movement Arrows Keybinds 0 Fullscreen 2 Font 18/Terminus Map View 76x50 Zoom Use 0% Tactical HUD 1 Map Filters NONE Filters NONE Steam 1 RUN: d75d6b31-9e31-4273-a9c3-45c1a508d7ab